fUSD/lending_fUSD_20240105
["ID","MTS","AMOUNT","RATE_DAILY","PERIOD"]
[310304336,1704469840315,-155.0,0.00022997,2]
[310304339,1704469840324,-249.01641499,0.00022998,2]
[310304343,1704469840334,-696.75265605,0.00022998,2]
[310304347,1704469840344,-695.17387652,0.00022998,2]
[310304351,1704469840353,-628.46944357,0.00022998,2]
[310304355,1704469840363,-245.75950104,0.00022998,2]
[310304358,1704469840373,-643.08128697,0.00022999,2]
[310304361,1704469840382,-16782.10820273,0.00022999,2]
[310304364,1704469840391,-2263.96943386,0.00022999,2]
[310304366,1704469840401,-7753.85560688,0.00022999,2]
[310304369,1704469840410,-7289.16792401,0.00022999,2]
[310304372,1704469840420,-200.14220301,0.00022999,2]
[310304375,1704469840429,-8940.36,0.00022999,2]
[310304378,1704469840439,-300.0,0.00022999,2]
[310304381,1704469840448,-300.0,0.00022999,2]
[310304384,1704469840459,-300.0,0.00022999,2]
[310304387,1704469840468,-300.0,0.00022999,2]
[310304390,1704469840478,-300.0,0.00022999,2]
[310304393,1704469840487,-300.0,0.00022999,2]
[310304395,1704469840496,-300.0,0.00022999,2]
[310304399,1704469840506,-305.84192038,0.00022999,2]
[310304402,1704469840515,-242246.67364928,0.00023,2]
[310304405,1704469840528,-578914.19288253,0.00023,2]
[310304408,1704469840540,-300.0,0.00023,2]
[310304413,1704469840556,-57633.84636084,0.00023,2]
[310304447,1704469840780,-271.32227524,0.00023,2]
[310304462,1704469840929,-2251.96892635,0.00023,2]
[310304464,1704469840941,-4019.09127962,0.00023,2]
[310304468,1704469840975,-825.28,0.00023,2]
[310304498,1704469841308,-756.131,0.00023,2]
[310304500,1704469841321,-315.6,0.00023,2]
[310304521,1704469841531,-492.6875681,0.00023,2]
[310304522,1704469841647,-206489.42249729,0.00023,2]
[310304523,1704469841657,-75236.61346231,0.00023,2]
[310304524,1704469841669,-72949.06390563,0.00023,2]
[310304658,1704469842849,-920.453401,0.00023,2]
[310304661,1704469842871,-296.09,0.00023,2]
[310304663,1704469842884,-152866.94513499,0.00023,2]
[310304672,1704469842958,-556.32970482,0.000229,2]
[310304674,1704469842968,-4629.52981993,0.00023,2]
[310304677,1704469842981,-35672.4767744,0.00023,2]
[310304679,1704469842994,-2988.46799702,0.00023,2]
[310304681,1704469843006,-2642.87264914,0.00023,2]
[310304694,1704469843118,-459.79552025,0.00023,2]
[310304762,1704469845809,-601.54991362,0.000229,2]
[310304763,1704469845819,-1772.77008599,0.00023,2]
[310304764,1704469845831,-679.82969783,0.00023,2]
[310304765,1704469845984,-745.08699983,0.00023,2]
[310304766,1704469846001,-1580.34648275,0.00023,2]
[310304767,1704469846014,-325.42455408,0.00023,2]
[310304768,1704469846067,-206339.683179,0.00023,2]
[310304769,1704469846079,-3348.49503481,0.00023,2]
[310304770,1704469846092,-1332.27306263,0.00023,2]
[310304771,1704469846114,-6541.65,0.00023,2]
[310304772,1704469846149,-11110.99999995,0.00023,2]
[310304776,1704469863949,206.0,0.00022465,2]
[310304777,1704469889042,678.75356354,0.00022076,2]
[310304778,1704469893952,205.0,0.00022465,2]
[310304782,1704469920893,367.88,0.00021176,2]
[310304791,1704469944830,208.76466007,0.00021918,2]
[310304799,1704470008842,200.18893762,0.00024824,9]
[310304800,1704470039400,937.22,0.00022038,2]
[310304801,1704470046499,175.81,0.00021656,2]
[310304802,1704470047767,175.81,0.00022204,2]
[310304803,1704470048702,169.43,0.00022042,2]
[310304804,1704470157995,160.1511501,0.00024821,9]
[310304806,1704470207383,-160.15115011,0.000229,6]
[310304807,1704470208182,291.71,0.00021993,2]
[310304808,1704470227563,-1250.0,0.00023,3]
[310304809,1704470285607,159.09,0.00022163,2]
[310304810,1704470286645,159.09,0.00022328,2]
[310304811,1704470287964,159.09,0.00022493,2]
[310304812,1704470291325,150.0,0.00022,2]
[310304813,1704470300838,250.0,0.00022,2]
[310304814,1704470302133,250.0,0.00022274,2]
[310304815,1704470312041,158.79,0.00021951,2]
[310304816,1704470359673,191.86,0.0002193,2]
[310304817,1704470384736,150.0,0.00022,2]
[310304818,1704470400374,153.97,0.00022104,2]
[310304819,1704470403094,150.0,0.00022,2]
[310304820,1704470403345,150.0,0.00022,2]
[310304821,1704470404380,150.0,0.00022,2]
[310304822,1704470404654,150.0,0.00022,2]
[310304823,1704470404829,150.0,0.00022,2]
[310304824,1704470404944,150.0,0.00022,2]
[310304825,1704470405070,150.0,0.00022,2]
[310304826,1704470405174,150.0,0.00022,2]
[310304827,1704470405230,150.0,0.00022,2]
[310304828,1704470405281,155.71926951,0.00021951,2]
[310304829,1704470405319,300.0,0.00022,2]
[310304830,1704470405688,155.0,0.00021951,2]
[310304831,1704470405817,155.0,0.00022,2]
[310304832,1704470407025,155.0,0.00022,2]
[310304833,1704470408369,155.0,0.00021951,2]
[310304834,1704470409882,155.0,0.00022,2]
[310304835,1704470409988,156.41060711,0.00022,2]
[310304836,1704470410208,155.0,0.00022466,2]
[310304837,1704470410257,155.0,0.00020773,2]
[310304838,1704470411238,155.0,0.000198,2]
[310304839,1704470411371,155.0,0.00021951,2]
[310304840,1704470413637,155.0,0.00022,2]
[310304841,1704470415362,155.0,0.00021951,2]
[310304842,1704470416204,155.0,0.00021951,2]
[310304843,1704470416771,155.0,0.00021951,2]
[310304844,1704470417874,344.32,0.00021851,2]
[310304845,1704470418331,155.0,0.00020321,2]
[310304846,1704470419278,219.8296715,0.0002195,2]
[310304848,1704470420838,155.0,0.00020321,2]
[310304849,1704470421304,211.50031915,0.00022353,2]
[310304850,1704470421357,197.11964442,0.00022,2]
[310304851,1704470422129,155.0,0.00022,2]
[310304852,1704470424772,155.0,0.0002,2]
[310304853,1704470425010,155.55789535,0.00022,2]
[310304854,1704470425227,155.0,0.000198,2]
[310304855,1704470425999,155.0,0.00022,2]
[310304856,1704470426353,156.81222125,0.00020773,2]
[310304857,1704470426416,155.0,0.00022,2]
[310304858,1704470428203,155.0,0.00022466,2]
[310304859,1704470430374,156.41060711,0.00022,2]
[310304860,1704470431886,155.0,0.00022,2]
[310304861,1704470432928,155.0,0.00022,2]
[310304862,1704470433349,155.0,0.00022,2]
[310304863,1704470433648,155.0,0.00022,2]
[310304864,1704470435141,234.570411,0.00021999,2]
[310304865,1704470436576,155.0,0.00022,2]
[310304866,1704470437192,155.0,0.00022,2]
[310304867,1704470437227,155.0,0.00020321,2]
[310304868,1704470439195,155.0,0.00022353,2]
[310304869,1704470440071,208.62686869,0.00022,2]
[310304870,1704470442382,155.0,0.00022,2]
[310304871,1704470442760,155.97742372,0.0002,2]
[310304872,1704470444193,155.0,0.00022466,2]
[310304873,1704470445783,155.0,0.00022,2]
[310304874,1704470449978,156.41060711,0.00022,2]
[310304875,1704470450707,155.0,0.00022,2]
[310304876,1704470450922,155.0,0.00022,2]
[310304877,1704470452760,155.0,0.00022,2]
[310304878,1704470452849,155.34481245,0.00020321,2]
[310304879,1704470453460,150.0,0.00022,2]
[310304880,1704470453881,155.0,0.00022,2]
[310304881,1704470457761,155.0,0.00022353,2]
[310304882,1704470457965,155.0,0.00022,2]
[310304883,1704470460205,155.0,0.00022,2]
[310304884,1704470463814,155.0,0.00022,2]
[310304885,1704470464233,155.59197994,0.00022466,2]
[310304886,1704470464383,155.0,0.00022,2]
[310304887,1704470465983,156.41060711,0.00022,2]
[310304888,1704470469062,155.0,0.00022,2]
[310304889,1704470474780,155.0,0.00022,2]
[310304890,1704470475227,155.0,0.0002235,2]
[310304891,1704470476212,157.05145425,0.00022,2]
[310304892,1704470477862,155.0,0.00022,2]
[310304893,1704470479795,155.0,0.00022,2]
[310304894,1704470487997,156.41060711,0.00022,2]
[310304895,1704470488374,155.87279022,0.00022,2]
[310304896,1704470491611,155.0,0.0002235,2]
[310304897,1704470493628,157.06753871,0.00022,2]
[310304898,1704470494821,349.48,0.00019926,2]
[310304899,1704470495059,349.48,0.0002219,2]
[310304900,1704470501783,155.0,0.00022,2]
[310304901,1704470506015,310.0,0.00022,2]
[310304902,1704470511864,155.0,0.0002235,2]
[310304903,1704470519805,155.0,0.00022,2]
[310304904,1704470521362,151.51,0.00021825,2]
[310304905,1704470521660,152.70627102,0.00022,2]
[310304906,1704470533711,155.0,0.0002235,2]
[310304907,1704470535797,155.0,0.00022,2]
[310304908,1704470551246,253.86236213,0.0002235,2]
[310304909,1704470553790,155.0,0.00022,2]
[310304910,1704470555345,874.73,0.00021823,2]
[310304911,1704470558208,155.0,0.00021999,2]
[310304912,1704470560659,155.0,0.00021999,2]
[310304913,1704470600223,-155.0,0.00022521,2]
[310304914,1704470600245,-155.0,0.00022521,2]
[310304915,1704470600265,-155.0,0.00022521,2]
[310304916,1704470600286,-155.0,0.00022521,2]
[310304917,1704470600307,-155.0,0.00022522,2]
[310304918,1704470600329,-155.0,0.00022522,2]
[310304919,1704470600348,-157.15051088,0.00022522,2]
[310304920,1704470600369,-155.0,0.00022522,2]
[310304921,1704470600389,-699.02511141,0.00022523,2]
[310304922,1704470600409,-155.0,0.00022531,2]
[310304923,1704470600429,-155.0,0.00022531,2]
[310304924,1704470600450,-326.10197027,0.00022532,2]
[310304925,1704470600470,-150.0,0.00022532,2]
[310304926,1704470600491,-155.0,0.00022533,2]
[310304927,1704470600512,-150.0,0.00022548,2]
[310304928,1704470600532,-500.0,0.00022548,2]
[310304929,1704470600553,-150.0,0.00022549,2]
[310304930,1704470600576,-150.0,0.00022554,2]
[310304931,1704470600597,-499.99,0.00022555,2]
[310304932,1704470600618,-155.0,0.00022576,2]
[310304933,1704470600639,-155.0,0.00022576,2]
[310304934,1704470600661,-155.0,0.00022577,2]
[310304935,1704470600683,-33299.43600266,0.00022578,2]
[310304936,1704470600703,-580.23750387,0.00022579,2]
[310304937,1704470600724,-155.0855656,0.00022579,2]
[310304938,1704470600746,-155.0,0.00022579,2]
[310304939,1704470600768,-155.00542496,0.00022579,2]
[310304940,1704470600790,-155.0,0.00022579,2]
[310304941,1704470600811,-155.36310221,0.00022579,2]
[310304942,1704470600832,-155.0,0.00022579,2]
[310304943,1704470600853,-155.0,0.00022579,2]
[310304944,1704470600875,-155.0,0.00022579,2]
[310304945,1704470600897,-155.0,0.00022579,2]
[310304946,1704470600918,-155.0,0.00022579,2]
[310304947,1704470600941,-155.0,0.00022579,2]
[310304948,1704470600968,-155.0,0.00022579,2]
[310304949,1704470600989,-155.0,0.00022579,2]
[310304950,1704470601010,-155.0,0.00022579,2]
[310304951,1704470601032,-199.67882891,0.00022579,2]
[310304952,1704470601052,-2339.094,0.0002258,2]
[310304953,1704470601075,-313.87538666,0.00022582,2]
[310304954,1704470601096,-4724.66659548,0.00022582,2]
[310304955,1704470601119,-153.97,0.00022624,2]
[310304956,1704470601140,-1409.32312715,0.00022656,2]
[310304957,1704470601163,-159.09,0.00022658,2]
[310304958,1704470601185,-655.68,0.00022658,2]
[310304959,1704470601207,-1212.4291043,0.00022715,2]
[310304960,1704470601229,-175.81,0.00022752,2]
[310304961,1704470601250,-8940.36,0.00022752,2]
[310304962,1704470601270,-150.0,0.0002277,2]
[310304963,1704470601291,-300.0,0.0002277,2]
[310304964,1704470601312,-7376.5162598,0.000228,2]
[310304965,1704470601335,-874.73,0.00022802,2]
[310304966,1704470601357,-159.09,0.00022823,2]
[310304967,1704470601378,-1000.0,0.00022896,2]
[310304968,1704470601399,-4570.4174,0.00022899,2]
[310304969,1704470601420,-5261.61661609,0.00022899,2]
[310304970,1704470601441,-170.41202413,0.00022899,2]
[310304971,1704470601462,-354.27077564,0.00022899,2]
[310304972,1704470601484,-170.41202413,0.00022899,2]
[310304973,1704470601504,-170.41202413,0.000229,2]
[310304974,1704470601526,-7971.550336,0.000229,2]
[310304975,1704470601551,-892.5097658,0.000229,2]
[310304976,1704470601574,-401.03327574,0.000229,2]
[310304977,1704470601595,-170.41202413,0.000229,2]
[310304978,1704470601616,-271.07708976,0.000229,2]
[310304979,1704470601636,-1911.22596838,0.000229,2]
[310304980,1704470601657,-176.71081874,0.000229,2]
[310304981,1704470601678,-201.25933419,0.000229,2]
[310304982,1704470601698,-1114.0,0.00022932,2]
[310304983,1704470601720,-159.09,0.00022988,2]
[310304984,1704470601741,-198.26231933,0.00022989,2]
[310304985,1704470601762,-198.26231933,0.0002299,2]
[310304986,1704470601782,-696.75265605,0.00022994,2]
[310304987,1704470601803,-695.17387652,0.00022994,2]
[310304988,1704470601825,-828.06322653,0.00022994,2]
[310304989,1704470601847,-643.08128697,0.00022994,2]
[310304990,1704470601874,-249.01641499,0.00022994,2]
[310304991,1704470601896,-269.8078803,0.00022994,2]
[310304992,1704470601918,-2263.96943386,0.00022994,2]
[310304993,1704470601939,-160.13125081,0.00022994,2]
[310304994,1704470601961,-572.78014201,0.00022994,2]
[310304995,1704470601984,-361.23781306,0.00022994,2]
[310304996,1704470602006,-361.05118527,0.00022994,2]
[310304997,1704470602026,-2912.3210612,0.00022994,2]
[310304998,1704470602049,-7753.85560688,0.00022994,2]
[310304999,1704470602072,-7289.16792401,0.00022994,2]
[310305000,1704470602094,-18952.0354155,0.00022995,2]
[310305001,1704470602118,-628.46944357,0.00022995,2]
[310305002,1704470602140,-245.75950104,0.00022995,2]
[310305003,1704470602163,-182.97925062,0.00022996,2]
[310305004,1704470602184,-155.0,0.00022996,2]
[310305005,1704470602206,-269.60010403,0.00022996,2]
[310305006,1704470602227,-400.0,0.00022996,2]
[310305007,1704470602248,-426.27254563,0.00022996,2]
[310305008,1704470602268,-3922.10081628,0.00022997,2]
[310305009,1704470602290,-4010.8664538,0.00022997,2]
[310305010,1704470602311,-1842.23178668,0.00022997,2]
[310305011,1704470602334,-1045.0,0.00022999,2]
[310305012,1704470602355,-3286.93466783,0.00022999,2]
[310305013,1704470602376,-952.05201195,0.00022999,2]
[310305014,1704470602396,-150.01,0.00022999,2]
[310305015,1704470602418,-15119.63563493,0.00022999,2]
[310305016,1704470660236,175.81,0.00021999,2]
[310305017,1704470677649,171.65,0.00021825,2]
[310305018,1704470689854,-155.0,0.00022517,2]
[310305019,1704470689876,-155.0,0.00022518,2]
[310305020,1704470689900,-155.0,0.00022518,2]
[310305021,1704470689920,-155.0,0.00022518,2]
[310305022,1704470689941,-155.0,0.00022519,2]
[310305023,1704470689962,-155.0,0.00022519,2]
[310305024,1704470689984,-155.0,0.00022519,2]
[310305025,1704470690005,-157.15051088,0.00022519,2]
[310305026,1704470690028,-155.0,0.0002252,2]
[310305027,1704470690050,-155.0,0.00022546,2]
[310305028,1704470690072,-47.84948912,0.00022547,2]
[310305029,1704470697204,150.0,0.000221,2]
[310305032,1704470725095,155.18,0.00022242,2]
[310305033,1704470725558,155.18,0.00022358,2]
[310305034,1704470726419,155.18,0.00022474,2]
[310305035,1704470823691,204.0,0.00022146,2]
[310305036,1704470848370,155.73,0.00022043,2]
[310305037,1704470871379,150.23,0.00021977,2]
[310305038,1704470871794,150.23,0.00022197,2]
[310305039,1704470872303,150.23,0.00022416,2]
[310305040,1704470907877,724.54,0.00021962,2]
[310305043,1704470954862,314.53,0.00020042,2]
[310305044,1704470955299,314.53,0.00022306,2]
[310305045,1704470985890,758.09,0.0002196,2]
[310305066,1704471031926,-155.0,0.00022533,2]
[310305067,1704471031936,-157.15051088,0.00022534,2]
[310305068,1704471031945,-19.49155128,0.00022535,2]
[310305069,1704471031957,-135.50844872,0.00022535,2]
[310305070,1704471031967,-127.96051088,0.00022547,2]
[310305071,1704471031977,-155.18,0.0002259,2]
[310305072,1704471031986,-150.23,0.00022636,2]
[310305073,1704471031996,-155.18,0.00022706,2]
[310305074,1704471032005,-155.18,0.00022822,2]
[310305075,1704471032015,-150.23,0.00022856,2]
[310305076,1704471032026,-161.49130183,0.00022898,2]
[310305077,1704471032036,-300.0,0.00022898,2]
[310305078,1704471032046,-150.0,0.00022898,2]
[310305079,1704471032056,-161.49130175,0.00022898,2]
[310305080,1704471032066,-161.49130175,0.00022899,2]
[310305081,1704471032080,-161.49130175,0.00022899,2]
[310305082,1704471032090,-2662.3696,0.00022899,2]
[310305083,1704471032100,-497.87289243,0.00022899,2]
[310305084,1704471032125,-310.52152974,0.00022899,2]
[310305085,1704471032261,-191.60557783,0.00022899,2]
[310305086,1704471032272,-161.49130175,0.00022899,2]
[310305087,1704471032282,-162.23297179,0.00022899,2]
[310305088,1704471032290,-1300.48383236,0.00022899,2]
[310305089,1704471032300,-1759.38871693,0.00022899,2]
[310305090,1704471032366,-413.90482051,0.00022899,2]
[310305102,1704471038143,-7119.64285562,0.00022899,2]
[310305103,1704471038155,-161.49130175,0.00022899,2]
[310305104,1704471038165,-161.49130175,0.000229,2]
[310305105,1704471038175,-161.49130175,0.000229,2]
[310305106,1704471038185,-161.49130175,0.000229,2]
[310305107,1704471038196,-267.35551716,0.000229,2]
[310305108,1704471038205,-1274.15064558,0.000229,2]
[310305109,1704471038215,-180.71805984,0.000229,2]
[310305110,1704471038224,-176.71081874,0.000229,2]
[310305111,1704471038234,-155.18,0.00022938,2]
[310305112,1704471038243,-758.09,0.00022939,2]
[310305113,1704471038253,-155.0,0.00022997,2]
[310305114,1704471038264,-155.0,0.00022997,2]
[310305115,1704471038275,-155.0,0.00022997,2]
[310305116,1704471038287,-155.43597055,0.00022997,2]
[310305117,1704471038295,-156.34585878,0.00022997,2]
[310305118,1704471038307,-155.0,0.00022997,2]
[310305119,1704471038316,-155.52881055,0.00022997,2]
[310305120,1704471038326,-155.0,0.00022997,2]
[310305121,1704471038336,-155.28167276,0.00022997,2]
[310305123,1704471038345,-156.17584899,0.00022997,2]
[310305125,1704471038354,-369.02618548,0.00022998,2]
[310305127,1704471038363,-155.0,0.00022998,2]
[310305129,1704471038373,-1094.74116953,0.00022998,2]
[310305131,1704471038383,-12519.64299487,0.00022998,2]
[310305133,1704471038392,-2362.4172586,0.00022998,2]
[310305135,1704471038401,-110603.6552706,0.00022998,2]
[310305137,1704471038410,-8754.3785236,0.00022998,2]
[310305139,1704471038420,-943.0,0.00022999,2]
[310305141,1704471038429,-1039144.28583887,0.00022999,2]
[310305143,1704471038440,-300.0,0.00022999,2]
[310305145,1704471038449,-300.0,0.00022999,2]
[310305146,1704471038458,-300.0,0.00022999,2]
[310305149,1704471038467,-300.0,0.00022999,2]
[310305150,1704471038477,-300.0,0.00022999,2]
[310305153,1704471038486,-300.0,0.00022999,2]
[310305154,1704471038495,-300.0,0.00022999,2]
[310305157,1704471038506,-305.84192038,0.00022999,2]
[310305159,1704471038516,-300.02,0.00022999,2]
[310305161,1704471038525,-3284.23971988,0.00022999,2]
[310305163,1704471038534,-2000.0,0.00022999,2]
[310305165,1704471038543,-2000.0,0.00022999,2]
[310305167,1704471038552,-200.0,0.00022999,2]
[310305169,1704471038561,-918488.90265258,0.00023,2]
[310305171,1704471038570,-927.97479753,0.00023,2]
[310305173,1704471038579,-7517.50685842,0.00023,2]
[310305175,1704471038588,-1028.82521068,0.00023,2]
[310305177,1704471038597,-176.43485132,0.00023,2]
[310305179,1704471038606,-290.80749524,0.00023,2]
[310305181,1704471038615,-1163.44564957,0.00023,2]
[310305183,1704471038624,-359.46829857,0.00023,2]
[310305185,1704471038635,-155.56768614,0.00023,2]
[310305187,1704471038644,-143829.39292537,0.00023,2]
[310305251,1704471039245,-492808.65902014,0.00023,2]
[310305254,1704471039257,-578914.19288253,0.00023,2]
[310305265,1704471039351,-36876.07887897,0.00023,2]
[310305267,1704471039362,-24074.86432979,0.00023,2]
[310305269,1704471039373,-153552.19921545,0.00023,2]
[310305272,1704471039385,-11436.79329372,0.00023,2]
[310305274,1704471039396,-408.00476076,0.00023,2]
[310305276,1704471039408,-7621.00874083,0.00023,2]
[310305279,1704471039428,-517418.57794446,0.00023,2]
[310305285,1704471039469,-394.92011752,0.00023,2]
[310305287,1704471039481,-3591.16957339,0.00023,2]
[310305289,1704471039492,-262.96695376,0.00023,2]
[310305292,1704471039508,-426.83816583,0.00023,2]
[310305295,1704471039532,-670.79670254,0.00023,2]
[310305298,1704471039543,-1285.22235789,0.00023,2]
[310305300,1704471039554,-951.26132272,0.00023,2]
[310305302,1704471039565,-620.07290513,0.00023,2]
[310305306,1704471039589,-508.620414,0.00023,2]
[310305308,1704471039601,-2197.4250838,0.00023,2]
[310305380,1704471040563,-8385.12645844,0.00023,2]
[310305395,1704471040692,-2770.21632546,0.00023,2]
[310305398,1704471040714,-8217.78086098,0.00023,2]
[310305444,1704471041259,-769341.63869485,0.00023,2]
[310305445,1704471041268,-108709.86245192,0.00023,2]
[310305446,1704471041277,-11987.8202191,0.00023,2]
[310305447,1704471041286,-207.21318,0.00023,2]
[310305448,1704471041294,-304.98,0.00023,2]
[310305449,1704471041303,-406.0,0.00023014,2]
[310305450,1704471041312,-150.0,0.00023014,2]
[310305451,1704471041321,-699.02511141,0.00023038,2]
[310305452,1704471041331,-1576.9785893,0.00023042,2]
[310305453,1704471041339,-155.18,0.00023053,2]
[310305454,1704471041348,-159.66,0.00023074,2]
[310305455,1704471041358,-150.23,0.00023076,2]
[310305456,1704471041367,-291.71,0.00023093,2]
[310305457,1704471041377,-175.81,0.00023095,2]
[310305459,1704471041386,-150.0,0.00023096,2]
[310305461,1704471041395,-10550.99934909,0.000231,2]
[310305463,1704471041404,-2414.63254129,0.0002313,2]
[310305465,1704471041414,-153.97,0.00023144,2]
[310305467,1704471041423,-163.08,0.00023158,2]
[310305475,1704471041668,-153.9,0.00023167,2]
[310305476,1704471041679,-155.18,0.00023169,2]
[310305477,1704471041689,-1212.4291043,0.00023187,2]
[310305478,1704471041700,-920.60065237,0.00023229,2]
[310305479,1704471041709,-200.0,0.00023229,2]
[310305480,1704471041719,-159.66,0.00023244,2]
[310305481,1704471041728,-155.18,0.00023285,2]
[310305482,1704471041740,-176.30344013,0.00023288,2]
[310305483,1704471041753,-182.19558738,0.00023288,2]
[310305484,1704471041762,-150.23,0.00023295,2]
[310305485,1704471041772,-153.9,0.00023398,2]
[310305486,1704471041781,-155.18,0.00023401,2]
[310305487,1704471041791,-159.66,0.00023414,2]
[310305488,1704471041801,-155.32,0.00023464,2]
[310305489,1704471041810,-150.23,0.00023515,2]
[310305490,1704471041821,-9292.93639301,0.00023573,2]
[310305491,1704471041830,-159.66,0.00023583,2]
[310305492,1704471041838,-153.9,0.0002363,2]
[310305493,1704471041848,-317.76278419,0.00023643,2]
[310305494,1704471041857,-153.97,0.00023663,2]
[310305495,1704471041867,-150.23,0.00023735,2]
[310305496,1704471041876,-159.66,0.00023753,2]
[310305497,1704471041886,-155.32,0.00023759,2]
[310305498,1704471041895,-166.53,0.00023839,2]
[310305499,1704471041905,-153.9,0.00023862,2]
[310305500,1704471041915,-758.09,0.00023917,2]
[310305501,1704471041925,-159.66,0.00023923,2]
[310305502,1704471041934,-150.23,0.00023955,2]
[310305503,1704471041944,-1300.48383233,0.00023958,2]
[310305504,1704471041955,-800.0,0.00023995,2]
[310305505,1704471041965,-1000.0,0.00023998,2]
[310305506,1704471041974,-432.20584956,0.00024,2]
[310305507,1704471041983,-201.8226569,0.00024,2]
[310305508,1704471041993,-155.67956808,0.00024,2]
[310305509,1704471042003,-155.32,0.00024053,2]
[310305510,1704471042012,-159.66,0.00024092,2]
[310305511,1704471042022,-153.9,0.00024093,2]
[310305512,1704471042031,-191.86,0.00024124,2]
[310305513,1704471042041,-150.23,0.00024175,2]
[310305514,1704471042051,-153.97,0.00024183,2]
[310305515,1704471042061,-291.71,0.00024193,2]
[310305516,1704471042070,-163.08,0.00024198,2]
[310305517,1704471042080,-9292.93639301,0.00024246,2]
[310305518,1704471042089,-159.66,0.00024262,2]
[310305519,1704471042099,-167.0,0.00024297,2]
[310305520,1704471042109,-167.0,0.00024297,2]
[310305521,1704471042118,-173.36,0.00024297,2]
[310305522,1704471042128,-167.01,0.00024297,2]
[310305523,1704471042137,-153.9,0.00024325,2]
[310305524,1704471042146,-155.32,0.00024347,2]
[310305525,1704471042155,-153.9,0.00024557,2]
[310305526,1704471042165,-314.53,0.0002457,2]
[310305527,1704471042174,-608.19864772,0.0002458,2]
[310305528,1704471042184,-344.32,0.00024582,2]
[310305529,1704471042194,-155.32,0.00024642,2]
[310305530,1704471042205,-562.31513185,0.00024657,2]
[310305531,1704471042214,-595.62,0.00024658,4]
[310305532,1704471042224,-250.0,0.00024658,2]
[310305533,1704471042233,-10000.0,0.00024658,2]
[310305534,1704471042243,-150.0,0.00024658,2]
[310305535,1704471042252,-150.0,0.00024658,2]
[310305536,1704471042261,-150.0,0.00024658,2]
[310305537,1704471042270,-150.0,0.00024658,2]
[310305538,1704471042279,-150.0,0.00024658,2]
[310305539,1704471042289,-150.0,0.00024658,2]
[310305540,1704471042298,-150.0,0.00024658,2]
[310305541,1704471042308,-150.0,0.00024658,2]
[310305542,1704471042316,-150.0,0.00024658,2]
[310305543,1704471042326,-150.0,0.00024658,2]
[310305544,1704471042335,-150.0,0.00024658,2]
[310305545,1704471042345,-150.0,0.00024658,2]
[310305546,1704471042354,-150.0,0.00024658,2]
[310305547,1704471042364,-150.0,0.00024658,2]
[310305548,1704471042373,-150.0,0.00024658,2]
[310305549,1704471042383,-150.0,0.00024658,2]
[310305550,1704471042392,-150.0,0.00024658,2]
[310305551,1704471042401,-150.0,0.00024658,2]
[310305552,1704471042410,-150.0,0.00024658,2]
[310305553,1704471042420,-150.0,0.00024658,2]
[310305554,1704471042429,-150.0,0.00024672,2]